Cogmind - Beta 14 @@@ ROGUE MODE // 2025.02.19 @ 23:05:27 Player: Zeta Lockhart Result: Destroyed by B-75 Beast with Heavy Plasma Cannon Performance ------------- Evolutions (5) 2500 Regions Visited (8) 1600 Robots Destroyed (157) 785 Value Destroyed (6162) 6162 Prototype IDs (5) 100 Alien Tech Used (0) 0 Bonus (1156) 1156 TOTAL SCORE: 12303 Bonus ------- High Alert Combat Kills 944 Follower Combat Kills 398 Friendly Fire -186 Cogmind --------- Core Integrity 0/1000 Matter 239/300 Energy 100/100 System Corruption 64% Temperature Cool (12) Movement Core (350) Ox6 Location -5/Extension Parts ------- > --- POWER (2) -------- (None) > --- PROPULSION (4) --- (None) > --- UTILITY (6) ------ Advanced Heat Sink Large Storage Unit > --- WEAPON (5) ------- (None) > --- INVENTORY (15) --- Micro Nuclear Core Cooled Fission Core Advanced Heat Sink Advanced Heat Sink Advanced Heat Sink Improved Cooling System Advanced Cooling System Compact Matter Pod (150) Improved Medium Armor Plating Improved Medium Armor Plating Peak State ------------ > --- POWER ------------ Light Fission Core Antimatter Reactor > --- PROPULSION ------- Wheel Compact Wheel Compact Wheel > --- UTILITY ---------- Advanced Heat Sink Advanced Heat Sink Improved Cooling System Large Storage Unit Improved Heavy Armor Plating > --- WEAPON ----------- Cooled Particle Cannon Heavy Plasma Cannon Heavy Phase Cannon Heavy Flak Cannon Enhanced Gauss Cannon > --- INVENTORY -------- Micro Nuclear Core Neutrino Core Cooled Fission Core Advanced Heat Sink Improved Cooling System Advanced Cooling System Compact Matter Pod Improved Medium Armor Plating Improved Medium Armor Plating Improved Medium Armor Plating Improved Hardlight Generator High-powered Shock Rifle Heavy Phase Cannon KE Penetrator Improved Proton Missile Launcher [Rating: 74] Favorites ----------- Power Reinforced Deuterium Engine Engine Reinforced Deuterium Engine Power Core Nuclear Core Reactor Light Antimatter Reactor Propulsion Armored Treads Treads Armored Treads Leg Aluminum Leg Wheel Wheel Utility Advanced Heat Sink Device Advanced Heat Sink Storage Large Storage Unit Protection Improved Medium Armor Plating Weapon Heavy Plasma Cannon Energy Gun Beamcaster Energy Cannon Heavy Plasma Cannon Ballistic Gun High-powered Shotgun Ballistic Cannon Gauss Cannon Launcher Tesla Bomb Launcher Build | -11 -10 -10 -9 -8 -7 -6 -5 -5 ------- Run | Yrd Mat Min Mat Mat Fac Fac Fac Ext Slots Evolved 10 | . . . 2 2 2 2 2 . Power 1 | . . . . . 1 . . . Propulsion 2 | . . . . . 1 1 . . Utility 4 | . . . 1 1 . 1 1 . Weapon 3 | . . . 1 1 . . 1 . Parts Attached 121 | 8 3 . 9 25 17 7 36 16 Power 14 | 1 1 . . 3 2 . 5 2 Engine 6 | 1 1 . . 2 2 . . . Core 6 | . . . . 1 . . 3 2 Reactor 2 | . . . . . . . 2 . Propulsion 21 | 4 . . 2 3 4 . 7 1 Treads 11 | 2 . . 2 3 4 . . . Leg 2 | 2 . . . . . . . . Wheel 8 | . . . . . . . 7 1 Hover . | . . . . . . . . . Flight . | . . . . . . . . . Utility 37 | 1 . . 5 5 3 4 12 7 Device 21 | . . . 2 3 1 3 9 3 Storage 4 | 1 . . 2 1 . . . . Processor . | . . . . . . . . . Hackware . | . . . . . . . . . Protection 12 | . . . 1 1 2 1 3 4 Artifact . | . . . . . . . . . Weapon 49 | 2 2 . 2 14 8 3 12 6 Energy Gun 7 | 1 1 . 1 2 . . . 2 Energy Cannon 17 | . 1 . . 4 3 2 6 1 Ballistic Gun 16 | 1 . . 1 3 5 1 3 2 Ballistic Cannon 7 | . . . . 5 . . 2 . Launcher 2 | . . . . . . . 1 1 Special Weapon . | . . . . . . . . . Impact Weapon . | . . . . . . . . . Slashing Weapon . | . . . . . . . . . Piercing Weapon . | . . . . . . . . . Special Melee Weapon . | . . . . . . . . . Unidentified Prototypes 5 | . . . . 2 . 1 2 . Corrupted Parts 5 | . . . . . . . 2 3 System Corruption 43 | . . . . . . . 17 26 Parts Lost 66 | . 1 . . 10 7 . 22 26 Power 9 | . . . . 1 1 . 4 3 Propulsion 16 | . . . . 3 2 . 7 4 Utility 15 | . . . . 2 2 . 3 8 Weapon 26 | . 1 . . 4 2 . 8 11 Highest Loss Streak 16 | . 1 . . 7 4 . 5 16 To Critical Strikes . | . . . . . . . . . Average Slot Usage (%) 87 | . 84 85 85 95 97 85 81 80 Engine 7 | . 14 14 11 4 13 13 7 . Core 2 | . . . . 4 . . 1 5 Treads 11 | . . . 11 17 22 20 7 . Leg 1 | . 28 28 7 . . . . . Wheel 2 | . . . . . . . 3 13 Device 13 | . . . 6 15 14 13 16 13 Storage 6 | . 14 14 11 9 7 6 5 5 Protection 6 | . . . 6 8 6 6 6 6 Energy Gun 1 | . 4 . 1 6 . . . 1 Energy Cannon 15 | . 9 14 11 13 17 19 15 12 Ballistic Gun 8 | . 14 14 18 7 10 6 9 1 Ballistic Cannon 3 | . . . . 9 1 . . 8 Peak Build Rating 74 | 6 8 8 12 41 45 54 73 74 Average Rating 47 | 4 7 8 9 32 41 52 63 65 On Entrance 25 | . 6 8 8 12 39 42 54 59 Naked Turns . | . . . . . . . . . Heaviest Build 106 | 12 14 14 26 65 74 92 106 106 Greatest Support 62 | 20 20 20 40 40 62 62 62 42 Greatest Overweight (x) 27 | 2 . . 1 3 1 1 27 13 Average Overweight (x) 1 | . . . . . . 1 2 2 Largest Inventory Capacity 15 | 8 8 8 10 15 15 15 15 15 Average Capacity 14 | 7 8 8 8 14 15 15 15 15 Most Carried 15 | 6 8 8 10 15 15 15 15 15 Average Carried 12 | 3 6 7 8 11 14 14 14 13 Final Capacity 15 | 8 8 8 10 15 15 15 15 15 Final Carried 15 | 4 7 8 10 15 14 15 15 10 Class Distribution -------------------- 68% | Scavenger-Tank 19% | Tank 7% | Mutant Dominant Class ---------------- Mutant | -10/Materials Mutant | -10/Mines Tank | -9/Materials Scavenger-Tank | -8/Materials Scavenger-Tank | -7/Factory Scavenger-Tank | -6/Factory Scavenger-Tank | -5/Factory Scavenger-Tank | -5/Extension Resources | -11 -10 -10 -9 -8 -7 -6 -5 -5 ----------- Run | Yrd Mat Min Mat Mat Fac Fac Fac Ext Matter Collected 3484 | 307 33 42 126 659 419 229 1123 546 Remotely . | . . . . . . . . . Salvage Created 7053 | 125 48 . 237 1429 1093 255 3087 779 Parts 351 | 5 4 . 14 70 58 13 159 28 Haulers Intercepted . | . . . . . . . . . Recyclers Shooed 8 | . . . 1 2 . . 4 1 Parts Field Recycled . | . . . . . . . . . Retrieved Matter . | . . . . . . . . . Parts Self-Destructed . | . . . . . . . . . Prevented . | . . . . . . . . . Kills | -11 -10 -10 -9 -8 -7 -6 -5 -5 ------- Run | Yrd Mat Min Mat Mat Fac Fac Fac Ext Combat Hostiles Destroyed 107 | . 3 . 2 27 13 3 47 12 Guns 25 | . 1 . . 10 6 . 7 1 Cannons 66 | . 1 . 1 17 5 3 31 8 AOE 7 | . 1 . 1 . 1 . 4 . Classes Destroyed 19 | 2 1 . 1 7 3 1 2 2 Worker 9 | . . . . 1 . . 8 . Builder 11 | . . . . 2 1 . 7 1 Tunneler 2 | 2 . . . . . . . . Recycler 12 | 1 . . 2 4 4 . 1 . Mechanic 3 | . . . . . 1 . 1 1 Operator 2 | . . . . 1 1 . . . Watcher 10 | . . . . 1 2 2 5 . Swarmer 14 | . 3 . 1 5 . . 5 . Grunt 45 | . . . . 15 7 . 19 4 Brawler 2 | . . . . . 1 . 1 . Duelist 1 | . . . . . . . . 1 Protector 1 | . . . . . . . 1 . Sentry 18 | . . . 1 4 1 2 5 5 Demolisher 1 | . . . . . . . . 1 Specialist 2 | . . . . 2 . . . . Hunter 5 | . . . . . . 1 4 . Programmer 14 | . . . . . 3 . 10 1 Heavy 3 | . . . . 1 1 . 1 . Behemoth 1 | . . . . . . . 1 . Savage 1 | . . . . . . . . 1 Best Kill Streak 8 | 3 2 . 4 5 8 1 8 8 Combat Bots Only 6 | . 2 . 2 5 5 1 5 6 Max Kills in Single Turn 3 | 1 1 . 1 2 2 1 3 2 Gunslinging . | . . . . . . . . . Exploded 1 | . 1 . 1 . 1 . 1 . Melee . | . . . . . . . . . Uniques/NPCs Destroyed . | . . . . . . . . . Combat | -11 -10 -10 -9 -8 -7 -6 -5 -5 -------- Run | Yrd Mat Min Mat Mat Fac Fac Fac Ext Hostile Shots Fired 849 | . 45 . 8 169 86 85 272 184 Missed 249 | . 11 . 1 58 30 34 67 48 Damage Taken 12203 | . 280 48 58 1919 973 504 4591 3830 Core 1408 | . 59 . 19 235 64 12 444 575 Absorbed by Shields 231 | . . . . . . . . 231 Core Remaining (%) 86 | 100 . 76 95 57 90 98 . . Volleys Fired 285 | 9 17 1 11 58 39 13 100 37 Largest 5 | 2 2 2 3 4 4 4 5 5 Hottest 388 | 70 76 76 132 182 176 201 388 320 Shots Fired 1060 | 18 33 2 25 203 144 52 436 147 Gun 339 | 18 32 1 14 56 49 13 121 35 Cannon 698 | . 1 1 11 147 95 39 299 105 Launcher 23 | . . . . . . . 16 7 Special . | . . . . . . . . . Kinetic 407 | 9 17 1 12 87 57 13 143 68 Thermal 522 | 9 . . 2 93 58 26 276 58 Explosive . | . . . . . . . . . Electromagnetic 131 | . 16 1 11 23 29 13 17 21 Robot Hit Streak 23 | 4 2 1 4 8 20 23 12 6 Robot Miss Streak 10 | 2 6 1 4 4 9 2 8 10 Penetration Max 1 | . . . . 1 . . 1 1 Secondary Targets . | . . . . . . . . . Shots Hit Robots 554 | 9 10 1 11 104 74 31 235 79 Core Hits 330 | 4 4 . 6 53 39 11 160 53 Critical Kills 6 | . . . . . . . 3 3 Critical Parts Destroyed 4 | . . . . . . . 2 2 Critical Strikes 25 | 1 . . . 8 2 . 6 8 Burn 5 | 1 . . . 4 . . . . Meltdown 6 | . . . . . . . 3 3 Destroy 5 | . . . . . . . 2 3 Blast 8 | . . . . 3 2 . 1 2 Corrupt 1 | . . . . 1 . . . . Melee Attacks . | . . . . . . . . . Impact . | . . . . . . . . . Slashing . | . . . . . . . . . Piercing . | . . . . . . . . . Sneak Attacks . | . . . . . . . . . Combat Hostiles . | . . . . . . . . . Follow-up Attacks . | . . . . . . . . . Damage Inflicted 18362 | 110 201 11 237 2991 1882 791 9402 2737 Guns 3731 | 110 133 11 67 687 510 145 1489 579 Cannons 11988 | . 19 . 123 2201 1276 644 5964 1761 Explosions 2595 | . 41 . 47 101 93 . 1945 368 Melee . | . . . . . . . . . Ramming 48 | . 8 . . 2 3 2 4 29 Kinetic 5474 | 47 77 11 53 1207 654 145 1949 1331 Thermal 10152 | 63 41 . 61 1379 872 436 6383 917 Explosive . | . . . . . . . . . Electromagnetic 2688 | . 75 . 123 403 353 208 1066 460 Impact . | . . . . . . . . . Slashing . | . . . . . . . . . Piercing . | . . . . . . . . . Highest Corruption 64 | . . . . . 2 . 25 64 Average Corruption 11 | . . . . . 1 . 5 32 Corruption Purged . | . . . . . . . . . Corruption Blocked . | . . . . . . . . . Effects 87 | . . . . . 5 . 37 45 Message Errors 22 | . . . . . 2 . 11 9 Matter Fused 17 | . . . . . 1 . 7 9 Heat Flow Errors 12 | . . . . . 1 . 6 5 Energy Discharges 4 | . . . . . . . 2 2 Parts Rejected 1 | . . . . . . . 1 . Parts Fused 2 | . . . . . . . . 2 Data Loss (minor) 7 | . . . . . 1 . 3 3 Data Loss (major) 4 | . . . . . . . . 4 Misfires 4 | . . . . . . . 3 1 Alerts 2 | . . . . . . . 1 1 Weapon Failures 12 | . . . . . . . 3 9 Overload Shots 1 | . . . . . . . 1 . Overflow Damage 382 | . . . . 72 24 18 216 52 Projectiles 190 | . . . . 44 24 18 93 11 Explosions 192 | . . . . 28 . . 123 41 Melee . | . . . . . . . . . Knockbacks 38 | . 1 . . 14 . . 10 13 Impact 2 | . 1 . . . . . . 1 Kinetic 30 | . . . . 11 . . 8 11 Secondary 6 | . . . . 3 . . 2 1 Self-Inflicted Damage 435 | . 8 . . 74 . . 272 81 Shots 14 | . 1 . . 2 . . 7 4 Rammed 7 | . . . . 2 . 2 2 1 Targets Rammed 9 | . 1 . . 2 1 2 2 1 Kicked 1 | . 1 . . . . . . . Crushed 1 | . . . . . 1 . . . Highest Temperature 509 | 36 42 15 54 356 238 238 509 227 Average Temperature 80 | 18 19 10 16 76 73 70 119 67 Received Heat Transfer 2750 | . . . . 576 387 156 1177 454 Effects 9 | . . . . . . . 9 . Shutdowns 4 | . . . . . . . 4 . Energy Bleed 2 | . . . . . . . 2 . Interference 2 | . . . . . . . 2 . Matter Decay 1 | . . . . . . . 1 . Siege Activations . | . . . . . . . . . Robots Corrupted 2 | . . . . . . . 2 . Combat Hostiles 1 | . . . . . . . 1 . Parts Fried 15 | . . . . 3 . . 12 . Impact Corruptions . | . . . . . . . . . Robots Melted 8 | . . . . . 1 . 4 3 Combat Hostiles 8 | . . . . . 1 . 4 3 Parts Melted 28 | 2 . . . 2 2 1 14 7 Heat Transferred 12186 | 259 . . 37 2333 1210 659 6611 1077 Parts Sabotaged . | . . . . . . . . . Parts Stolen . | . . . . . . . . . Parts Stripped . | . . . . . . . . . Power Chain Reactions 10 | . 1 . 1 2 1 . 4 1 Alert | -11 -10 -10 -9 -8 -7 -6 -5 -5 ------- Run | Yrd Mat Min Mat Mat Fac Fac Fac Ext Peak Influence 1051 | 15 88 56 291 586 387 213 1051 728 Initial 514 | . 9 34 21 122 215 121 51 514 Average 336 | 3 70 46 190 346 316 127 394 603 Maximum Alert Level 3 | . . . 1 2 1 1 3 3 Low Security (%) 31 | 100 100 100 40 30 1 99 16 . Level 1 37 | . . . 59 21 98 . 51 . Level 2 24 | . . . . 47 . . 16 82 Level 3 7 | . . . . . . . 15 17 Level 4 . | . . . . . . . . . Level 5 . | . . . . . . . . . High Security . | . . . . . . . . . Max Security . | . . . . . . . . . Squads Dispatched 26 | . . . 2 4 5 . 11 4 Investigation 1 | . . . 1 . . . . . Extermination 6 | . . . . . 2 . 4 . Reinforcement 16 | . . . 1 4 3 . 6 2 Assault 3 | . . . . . . . 1 2 Garrison . | . . . . . . . . . Intercept . | . . . . . . . . . Searches Triggered . | . . . . . . . . . Construction Impeded 7 | . . . . 1 1 . 3 2 Haulers Reinforced 1 | . . . . . . . 1 . Active Scanning Responses . | . . . . . . . . . Cargo Convoy Interrupts . | . . . . . . . . . Stealth | -11 -10 -10 -9 -8 -7 -6 -5 -5 --------- Run | Yrd Mat Min Mat Mat Fac Fac Fac Ext Distress Signals 7 | . . . 1 . . . 5 1 Communications Jammed . | . . . . . . . . . Distress Signals . | . . . . . . . . . Times Spotted 171 | . 3 1 12 35 20 10 59 31 Peak Tracking Total 9 | . 3 1 4 5 4 4 6 9 Tactical Retreats 3 | . . . . 2 1 . . . Traps | -11 -10 -10 -9 -8 -7 -6 -5 -5 ------- Run | Yrd Mat Min Mat Mat Fac Fac Fac Ext Traps Triggered 2 | . . . 1 . . . 1 . Indirectly 1 | . . . . . . . 1 . Trap Hack Attempts . | . . . . . . . . . Triggered . | . . . . . . . . . Disarmed . | . . . . . . . . . Reprogrammed . | . . . . . . . . . Reused . | . . . . . . . . . Traps Extracted . | . . . . . . . . . Installed . | . . . . . . . . . Triggered . | . . . . . . . . . Machines | -11 -10 -10 -9 -8 -7 -6 -5 -5 ---------- Run | Yrd Mat Min Mat Mat Fac Fac Fac Ext Machines Disabled 20 | . . . 1 2 . 1 12 4 Max in Single Turn 3 | . . . . 1 . 1 3 1 Machines Repaired . | . . . . . . . . . Machines Dismantled . | . . . . . . . . . Machines Sabotaged . | . . . . . . . . . Overloaded Fab Kills . | . . . . . . . . . Hacking | -11 -10 -10 -9 -8 -7 -6 -5 -5 --------- Run | Yrd Mat Min Mat Mat Fac Fac Fac Ext Machines Accessed 8 | . 1 . 1 1 1 . 2 2 Terminals 7 | . 1 . 1 . 1 . 2 2 Fabricators . | . . . . . . . . . Repair Stations . | . . . . . . . . . Recycling Units . | . . . . . . . . . Scanalyzers 1 | . . . . 1 . . . . Garrison Access . | . . . . . . . . . Total Hacks 17 | . 2 . 1 4 2 . 4 4 Successful 9 | . 1 . 1 4 . . 2 1 Failed 8 | . 1 . . . 2 . 2 3 Catastrophic 1 | . . . . . . . . 1 Database Lockouts . | . . . . . . . . . Manual . | . . . . . . . . . Terminals 13 | . 2 . 1 . 2 . 4 4 Fabricators . | . . . . . . . . . Repair Stations . | . . . . . . . . . Recycling Units . | . . . . . . . . . Scanalyzers 4 | . . . . 4 . . . . Garrison Access . | . . . . . . . . . Terminal Hacks 5 | . 1 . 1 . . . 2 1 Open Door 2 | . . . . . . . 1 1 Open DSF 1 | . . . . . . . 1 . Locate Traps 1 | . . . 1 . . . . . Hauler Manifests 1 | . 1 . . . . . . . Fabricator Hacks . | . . . . . . . . . Repair Station Hacks . | . . . . . . . . . Recycling Unit Hacks . | . . . . . . . . . Scanalyzer 4 | . . . . 4 . . . . Insert Component 2 | . . . . 2 . . . . Analyze 2 | . . . . 2 . . . . Garrison Access Hacks . | . . . . . . . . . Unauthorized Hacks . | . . . . . . . . . Terminals . | . . . . . . . . . Fabricators . | . . . . . . . . . Repair Stations . | . . . . . . . . . Recycling Units . | . . . . . . . . . Scanalyzers . | . . . . . . . . . Garrison Access . | . . . . . . . . . Data Cores Recovered 2 | . . . . 1 1 . . . Used . | . . . . . . . . . Hacking Detections 5 | . . . 1 1 1 . 1 1 Full Trace Events . | . . . . . . . . . Feedback Events . | . . . . . . . . . Feedback Blocked . | . . . . . . . . . Robot Schematics Acquired . | . . . . . . . . . Robots Built . | . . . . . . . . . Authchips . | . . . . . . . . . Time . | . . . . . . . . . Total Robot Build Rating . | . . . . . . . . . Part Schematics Acquired 2 | . . . . 2 . . . . Parts Built . | . . . . . . . . . Authchips . | . . . . . . . . . Time . | . . . . . . . . . Total Part Build Rating . | . . . . . . . . . Parts Repaired . | . . . . . . . . . Time . | . . . . . . . . . Parts Recycled . | . . . . . . . . . Recycled Matter . | . . . . . . . . . Retrieved Matter . | . . . . . . . . . Retrieved Components . | . . . . . . . . . Parts Scanalyzed 2 | . . . . 2 . . . . Part Schematics Acquired 2 | . . . . 2 . . . . Parts Damaged . | . . . . . . . . . Bothacking | -11 -10 -10 -9 -8 -7 -6 -5 -5 ------------ Run | Yrd Mat Min Mat Mat Fac Fac Fac Ext Used RIF Installer . | . . . . . . . . . Robots Hacked . | . . . . . . . . . Non-combat . | . . . . . . . . . Combat . | . . . . . . . . . Robot Hacks Applied . | . . . . . . . . . Relay Couplers Released . | . . . . . . . . . Fabnet Peak Effective % . | . . . . . . . . . Robots Rewired 8 | . . . . . . . . 8 Allies Hacked 1 | . . . . . . . . 1 Hacks Repelled . | . . . . . . . . . Allies | -11 -10 -10 -9 -8 -7 -6 -5 -5 -------- Run | Yrd Mat Min Mat Mat Fac Fac Fac Ext Total Allies 11 | . . 2 . . . . . 9 Largest Group 8 | . . 2 2 1 . . . 8 Highest-Rated Group 211 | . . 49 49 31 . . . 211 Highest-Rated Ally 159 | . . 31 31 31 . . . 159 Total Orders . | . . . . . . . . . Ally Attacks 65 | . . 1 19 1 . . . 44 Total Damage 1283 | . . 20 294 21 . . . 948 Kills 15 | . . 1 8 1 . . . 5 Allies Corrupted 1 | . . . . . . . . 1 Allies Melted . | . . . . . . . . . Intel | -11 -10 -10 -9 -8 -7 -6 -5 -5 ------- Run | Yrd Mat Min Mat Mat Fac Fac Fac Ext Robot Analysis Total . | . . . . . . . . . Derelict Logs Recovered . | . . . . . . . . . Drone Launches . | . . . . . . . . . Drone Recoveries . | . . . . . . . . . Exploration | -11 -10 -10 -9 -8 -7 -6 -5 -5 ------------- Run | Yrd Mat Min Mat Mat Fac Fac Fac Ext Turns Passed 6592 | 90 230 165 197 1278 899 733 2268 732 Spaces Moved 2460 | 44 141 135 100 446 318 275 657 344 Core 25 | 19 . . . . . . 4 2 Treads 1516 | . . . 59 446 318 275 418 . Legs 342 | 25 141 135 41 . . . . . Wheels 577 | . . . . . . . 235 342 Hover . | . . . . . . . . . Flight . | . . . . . . . . . Fastest Speed 50 | 50 120 120 120 160 158 238 100 108 Average Speed 207 | 101 120 120 148 224 221 238 273 126 Slowest Speed 1400 | 150 120 120 240 400 238 238 1400 700 Overloaded Moves . | . . . . . . . . . Propulsion Burnouts . | . . . . . . . . . Robots Hopped . | . . . . . . . . . Cave-ins Triggered 1 | . . . . . . . . 1 Exploration Rate (%) 25 | 4 35 36 15 54 14 7 21 44 Regions Visited 8 Branch Regions 2 Pre-discovered Areas . | . . . . . . . . . Known Exits Taken . | . . . . . . . . . Unknown Exits Taken 8 | 1 1 1 1 1 1 1 1 . Scrap Searched 1 | . . 1 . . . . . . Spaces Dug 7 | . . . . . . . 7 . Terrain Destroyed 278 | . 3 . 2 69 10 5 157 32 Melee . | . . . . . . . . . Projectile 191 | . . . . 62 10 5 87 27 AOE 87 | . 3 . 2 7 . . 70 5 Terrain Rammed . | . . . . . . . . . Walls Destroyed . | . . . . . . . . . Machines Disabled . | . . . . . . . . . Actions | -11 -10 -10 -9 -8 -7 -6 -5 -5 --------- Run | Yrd Mat Min Mat Mat Fac Fac Fac Ext Total 3257 | 72 169 136 130 586 425 323 865 551 Wait 80 | . . . . 8 25 7 28 12 Move 2452 | 43 140 134 99 445 317 274 656 344 Hop . | . . . . . . . . . Pick Up 112 | 10 6 1 5 30 10 10 28 12 Fast Attach 19 | . . . 3 4 8 1 3 . Attach 79 | 8 2 . 4 13 7 4 26 15 Detach 9 | 2 . . 1 1 3 1 1 . Swap 23 | . 1 . 2 8 2 2 7 1 Drop 62 | . 2 . 5 17 13 9 14 2 Fire 285 | 9 17 1 11 58 39 13 100 37 Melee . | . . . . . . . . . Ram 2 | . . . . . . . 1 1 Kick 1 | . 1 . . . . . . . Crush 6 | . . . . 2 1 2 1 . Escape Stasis . | . . . . . . . . . Rewire 127 | . . . . . . . . 127 Trap . | . . . . . . . . . Miscellaneous . | . . . . . . . . . Route ------- -11/Scrapyard -10/Materials -10/Mines (discovered 2 exits: *Mat x2) -9/Materials -8/Materials -7/Factory -6/Factory -5/Factory -5/Extension History --------- Turn | Location | Event 3 | -11/Scrapyard | Discovered new exit (range 16) 91 | -11/Scrapyard | Entered Materials 227 | -10/Materials | Discovered new exit (range 16) 305 | -10/Materials | Build established: Mutant 321 | -10/Materials | Entered Mines 358 | -10/Mines | Assembled infested the area 363 | -10/Mines | Assisted by a Guerilla fighting off Assembled 394 | -10/Mines | Discovered new exit (range 14) 469 | -10/Mines | Discovered new exit (range 4) 486 | -10/Mines | Entered Materials 486 | -9/Materials | Accompanied by 2 allies 486 | -9/Materials | Evolved 2 slots: Utility x1, Weapon x1 491 | -9/Materials | Led the pair of lost Derelicts to an unsafe place 626 | -9/Materials | Discovered new exit (range 15) 683 | -9/Materials | Entered another Materials area 683 | -8/Materials | Accompanied by 1 ally 683 | -8/Materials | Evolved 2 slots: Utility x1, Weapon x1 834 | -8/Materials | Build established: Tank 1210 | -8/Materials | Lost 7 parts (3n2u2w) 1252 | -8/Materials | Found Prototype Device 1565 | -8/Materials | Build established: Scavenger-Tank 1951 | -8/Materials | Discovered new exit (range 4) 1961 | -8/Materials | Entered Factory 1961 | -7/Factory | Evolved 2 slots: Power x1, Propulsion x1 2053 | -7/Factory | Lost 4 parts (1p1n2w) 2819 | -7/Factory | Discovered new exit (range 7) 2860 | -7/Factory | Entered another Factory area 2860 | -6/Factory | Evolved 2 slots: Propulsion x1, Utility x1 3551 | -6/Factory | Discovered new exit (range 3) 3593 | -6/Factory | Entered another Factory area 3593 | -5/Factory | Evolved 2 slots: Utility x1, Weapon x1 3717 | -5/Factory | Spotted B-75 Beast 3770 | -5/Factory | Destroyed B-75 Beast 4046 | -5/Factory | Build established: Tank 4657 | -5/Factory | Found Prototype Launcher 5022 | -5/Factory | Build established: Scavenger-Tank 5342 | -5/Factory | Lost 5 parts (1p1n3w) 5473 | -5/Factory | Identified Tesla Bomb Launcher 5610 | -5/Factory | Lost 3 parts (1p1n1w) 5644 | -5/Factory | System corruption reached 10% 5693 | -5/Factory | First assault squad dispatched 5857 | -5/Factory | Discovered new exit (range 6) 5861 | -5/Factory | Entered Extension 6161 | -5/Extension | First assault squad dispatched 6317 | -5/Extension | Core integrity fell below 50% 6352 | -5/Extension | Crushed by falling debris 6352 | -5/Extension | System corruption reached 30% 6389 | -5/Extension | Lost 8 allies 6393 | -5/Extension | Lost 9 parts (1p2n2u4w) 6449 | -5/Extension | Rescued A7 6534 | -5/Extension | Spotted B-75 Beast 6557 | -5/Extension | Spotted B-75 Beast 6564 | -5/Extension | Core integrity fell below 20% 6593 | -5/Extension | Destroyed by B-75 Beast with Heavy Plasma Cannon Last Messages --------------- 06577_ Penetrated by Slug. 06577_ Slug penetrates Y-64 Sentinel. 06577_ Imp. Medium Armor Plating destroyed. 06578_ KE Penetrator destroyed. 06580_ Penetrated by Slug. 06580_ Slug penetrates B-75 Beast. 06581_ Hvy. Phase Cannon destroyed. 06583_ Slug penetrates A7. 06583_ Knocked back. 06583_ Lyr. Light Armor Plating destroyed. 06585_ Slug penetrates A7. 06586_ The unstable cave ceiling collapses. 06586_ Corrupted Flexi-carbon Leg crushed. 06587_ Adv. Heat Sink destroyed. 06587_ Neutrino Core destroyed. 06590_ W-25 Informer destroyed. 06592_ Chain reaction triggered in Neutrino Core. 06592_ Y-64 Sentinel destroyed. 06592_ Chain reaction triggered in Corrupted Lgt. Fission Core. 06592_ KE Penetrator destroyed. Map ----- +----------------------------------------------------+ | ?????????????????????????????????????????????????? | | ?????????????????????????????????????????????????? | | #""##????????????????????????????????????????????? | | #????????????????????????????????????????????? | | # ###########????????????????????????????????????? | | = ^ ##""#???############?????????????????????? | | ##T"##### #?????????????????????? | | #?????????????????????? | | ################# #?????????????????????? | | ??????????????# # #?????????????????????? | | ??????????????" # ##### #?????????????????????? | | ??????????????" #???# #?????????????????????? | | ??????????????#T# #???# #?????????????????????? | | ??????????????#####???# #?????????????????????? | | ??????????????????????# #?????????????????????? | | ???????????????????####+## #?????????????????????? | | ???????????????????# + #?????????????????????? | | ???????????????????# # #?????????????????????? | | ???????????????????# # #?????????????????????? | | ???????????????????# # #?????????????????????? | | ???????????????????# #%#?????????????????????? | | ???????????????????# # #?????????????????????? | | ???????????????????# #%#?????????????????????? | | ???????????????????####### #####?????????????????? | | ??????????????????????####%; % #?????????????????? | | ??????????????????????# %@== ;#?????????????????? | | ??????????????????????#;;!p #?????????????????? | | ??????????????????????#; *== "" "??????????? | | ??????????????????????# % " "??????????? | | ??????????????????????#; t R ?????????? | | ??????????????????????#;[%= #????????? | | ####??????????????????#; u #????????? | | ??????????????? BB ????????? | | ??????????????? BB ????????? | | ?????????????? BB ?????????? | | ?????????????? BB ?????????? | | ?????????????? R ??????????? | | ######?????????????##### ??????????? | | ???????????????????????# ????????????? | | ???????????????????????# ??????????????? | | ???????????????????????# ?????????????????? | | ???????????????????????? ???????????????????? | | ?????????????????????????????????????????????????? | | ?????????????????????????????????????????????????? | | ?????????????????????????????????????????????????? | | | | | | | | | | | +----------------------------------------------------+ Best States ------------- Heat Dissipation 124 Energy Generation 34 Energy Capacity 480 Matter Stores 300 Matter Capacity 300 Sight Range 16 Terrain Scan Density 10 Armor Coverage 825 Evasion (%) 55 Recoil Reduction 3 Item Schematics ----------------- Lgt. Treads | -8/Materials | Scanalyzed Lgt. EM Pulse Cannon | -8/Materials | Scanalyzed Robot Schematics ------------------ None Fabricated ------------ Nothing Alien Tech Used ----------------- None Achievements -------------- Prison Break Challenges ------------ None Game ------ Seed DeliveryParticleNanosword Manual? 0 Play Time 01:29:33 Cumulative 35.3 hours Start 2025.02.19 @ 21:36:41 End 2025.02.19 @ 23:05:27 Sessions 1 Manual Loads 0 Difficulty Rogue Special Mode None Game No. 32 Rogue 32 Adventurer 0 Explorer 0 Win Type - Total 0 Types 0/0/0/0/0/0/0/0/0 Lore% 3 Gallery% 27 Achievement% 21 Wizard Run 0 Options --------- Layout 0 ASCII 0 Keyboard 0 Movement Mouse Keybinds 0 Fullscreen 2 Font 12/Smallcaps Map View 41x27 Zoom Use 99% Tactical HUD 1 Map Filters NONE Filters NONE Steam 1 RUN: a5e5d7ee-7fa9-4120-b633-27fc84e27a8e